fUST/lending_fUST_20241231
["ID","MTS","AMOUNT","RATE_DAILY","PERIOD"]
[347254101,1735639843349,-3502.2408558,0.00019138,2]
[347254102,1735639843361,-929.89395378,0.00019138,2]
[347254103,1735639843372,-63511.43061682,0.00019138,2]
[347254104,1735639843457,-1727.97656051,0.00019138,2]
[347254105,1735639843471,-4206.26324597,0.00019138,2]
[347254109,1735639846336,-2148.18837843,0.00019138,2]
[347254110,1735639846348,-624.7826615,0.00019138,2]
[347254111,1735639846493,-242.62487248,0.00019138,2]
[347254128,1735640462713,-157.62947201,0.0002,30]
[347254129,1735640462739,-152.60361993,0.0002,30]
[347254130,1735640462814,-1114.54955169,0.00022,30]
[347254131,1735640462859,-897.58757879,0.00024,60]
[347254132,1735640462884,-8904.50607,0.00024,30]
[347254133,1735640462911,-500.0,0.00024288,30]
[347254134,1735640462937,-500.0,0.00024288,30]
[347254135,1735640462963,-500.0,0.00024288,30]
[347254136,1735640462988,-500.0,0.00024288,30]
[347254137,1735640463014,-500.0,0.00024288,30]
[347254138,1735640463043,-500.0,0.00024288,30]
[347254139,1735640463068,-500.0,0.00024288,30]
[347254140,1735640463093,-500.0,0.00024288,30]
[347254141,1735640463119,-500.0,0.00024288,30]
[347254142,1735640463145,-941.17300923,0.00024288,30]
[347254143,1735640463170,-500.0,0.00024288,30]
[347254144,1735640463195,-500.0,0.00024288,30]
[347254145,1735640463221,-500.0,0.00024288,30]
[347254146,1735640463246,-500.0,0.00024288,30]
[347254147,1735640463271,-500.0,0.00024288,30]
[347254148,1735640463295,-510.14373761,0.00024288,30]
[347254149,1735640463321,-700.0,0.00024288,30]
[347254150,1735640463346,-700.0,0.00024288,30]
[347254151,1735640463371,-700.0,0.00024288,30]
[347254152,1735640463400,-700.0,0.00024288,30]
[347254153,1735640463425,-700.0,0.00024288,30]
[347254154,1735640463449,-700.0,0.00024288,30]
[347254155,1735640463476,-700.0,0.00024288,30]
[347254156,1735640463503,-700.0,0.00024288,30]
[347254157,1735640463529,-700.0,0.00024288,30]
[347254158,1735640463554,-700.0,0.00024288,30]
[347254159,1735640463581,-700.0,0.00024288,30]
[347254160,1735640463607,-700.0,0.00024288,30]
[347254161,1735640463632,-918.55266009,0.00024288,30]
[347254162,1735640463676,-1000.5,0.00025,31]
[347254163,1735640463702,-382.0,0.00025,31]
[347254164,1735640463727,-150.5,0.00025,31]
[347254165,1735640463753,-164.6,0.00025,31]
[347254166,1735640463783,-470.0,0.00025,30]
[347254167,1735640463809,-136717.80363374,0.00025,30]
[347254168,1735640463835,-393.548058,0.00025,30]
[347254169,1735640463865,-160.0,0.0002598,120]
[347254170,1735640463890,-199.999999,0.00026,120]
[347254171,1735640463916,-432.08972124,0.000261,60]
[347254172,1735640463942,-421.0,0.00027,30]
[347254173,1735640463968,-400.0,0.00027397,60]
[347254174,1735640463995,-1789.033457,0.00027397,120]
[347254175,1735640464112,-4900.43,0.000274,30]
[347254176,1735640464140,-15303.01,0.000274,30]
[347254177,1735640464169,-40623.36334074,0.00027553,30]
[347254178,1735640464200,-610.957,0.0002779,120]
[347254179,1735640464230,-4355.73590974,0.00028,120]
[347254180,1735640464258,-500.0,0.00028,30]
[347254181,1735640464290,-500.0,0.00028,30]
[347254182,1735640464317,-500.0,0.00028,30]
[347254183,1735640464344,-500.0,0.00028,30]
[347254184,1735640464369,-500.0,0.00028,30]
[347254185,1735640464398,-500.0,0.00028,30]
[347254186,1735640464423,-500.0,0.00028,30]
[347254187,1735640464448,-500.0,0.00028,30]
[347254188,1735640464475,-500.0,0.00028,30]
[347254189,1735640464500,-500.0,0.00028,30]
[347254190,1735640464524,-190.0,0.00028,30]
[347254191,1735640464548,-501.30387938,0.00028,30]
[347254192,1735640464572,-499.3,0.00028,30]
[347254193,1735640464597,-500.0,0.00028,30]
[347254194,1735640464621,-500.0,0.00028,30]
[347254195,1735640464645,-700.0,0.00028,30]
[347254196,1735640464669,-700.0,0.00028,30]
[347254197,1735640464694,-500.0,0.00028,30]
[347254198,1735640464719,-700.0,0.00028,30]
[347254199,1735640464745,-500.0,0.00028,30]
[347254200,1735640464769,-700.0,0.00028,30]
[347254201,1735640464793,-500.0,0.00028,30]
[347254202,1735640464817,-500.67582648,0.00028,30]
[347254203,1735640464842,-700.0,0.00028,30]
[347254204,1735640464870,-500.0,0.00028,30]
[347254205,1735640464896,-217.81635027,0.00028,30]
[347254206,1735640464923,-700.0,0.00028,30]
[347254207,1735640464948,-500.0,0.00028,30]
[347254208,1735640464975,-502.61915802,0.00028,30]
[347254209,1735640465001,-500.0,0.00028,30]
[347254210,1735640465026,-700.0,0.00028,30]
[347254211,1735640465051,-501.38688303,0.00028,30]
[347254212,1735640465075,-700.0,0.00028,30]
[347254213,1735640465100,-163.93366178,0.00028,30]
[347254214,1735640465124,-700.0,0.00028,30]
[347254215,1735640465149,-700.0,0.00028,30]
[347254216,1735640465175,-700.0,0.00028,30]
[347254217,1735640465200,-700.0,0.00028,30]
[347254218,1735640465227,-700.0,0.00028,30]
[347254219,1735640465254,-160.0,0.0002844,120]
[347254220,1735640465280,-700.0,0.00028767,30]
[347254221,1735640465305,-610.974,0.0002899,120]
[347254222,1735640465330,-8324.92158641,0.00028991,120]
[347254223,1735640465355,-5794.9074053,0.00029,30]
[347254224,1735640465386,-200.0,0.00029,120]
[347254225,1735640465411,-179.40995345,0.00029,120]
[347254226,1735640465436,-5230.0,0.00029,120]
[347254227,1735640465461,-2618.0,0.0002921,120]
[347254228,1735640465487,-2618.0,0.0002921,120]
[347254229,1735640465510,-150.58,0.0002922,120]
[347254230,1735640465534,-242.1,0.0002922,120]
[347254231,1735640465559,-176.27,0.0002922,120]
[347254232,1735640465583,-2618.0,0.0002922,120]
[347254233,1735640465607,-2618.0,0.0002922,120]
[347254234,1735640465631,-2618.0,0.0002922,120]
[347254235,1735640465656,-2625.08,0.0002922,120]
[347254236,1735640465680,-2618.0,0.0002923,120]
[347254237,1735640465706,-2618.0,0.0002923,120]
[347254238,1735640465730,-2618.0,0.0002923,120]
[347254239,1735640465753,-2618.0,0.0002923,120]
[347254240,1735640465778,-150.5,0.0002928,120]
[347254241,1735640465803,-150.5,0.0002928,120]
[347254242,1735640465827,-150.5,0.0002928,120]
[347254243,1735640465853,-150.5,0.0002928,120]
[347254244,1735640465992,-150.5,0.0002929,120]
[347254245,1735640466019,-150.5,0.0002929,120]
[347254246,1735640466045,-150.5,0.0002929,120]
[347254247,1735640466070,-150.5,0.0002929,120]
[347254248,1735640466094,-150.5,0.0002929,120]
[347254249,1735640466119,-700.0,0.00029315,30]
[347254250,1735640466142,-200.0,0.000294,120]
[347254251,1735640466166,-167.37931552,0.000295,120]
[347254252,1735640466190,-4900.43,0.000295,30]
[347254253,1735640466216,-15303.01,0.000295,30]
[347254254,1735640466242,-11710.38138772,0.000295,30]
[347254255,1735640466267,-700.0,0.00029863,30]
[347254256,1735640466292,-466.799,0.0002989,120]
[347254257,1735640466315,-175.07073606,0.000299,120]
[347254258,1735640466339,-158.47599417,0.00029996,120]
[347254259,1735640466363,-1000.0,0.00029999,120]
[347254260,1735640466390,-347.42573411,0.0003,30]
[347254261,1735640466414,-524.19598106,0.0003,30]
[347254262,1735640466440,-800.0,0.0003,120]
[347254263,1735640466465,-400.0,0.0003,120]
[347254264,1735640466490,-151.0,0.0003,120]
[347254265,1735640466514,-151.0,0.0003,120]
[347254266,1735640466538,-430.77193033,0.0003,120]
[347254267,1735640466561,-5164.75756255,0.0003,120]
[347254268,1735640466585,-5164.75756255,0.0003,120]
[347254269,1735640466609,-379.0,0.0003,60]
[347254270,1735640466634,-3583.0,0.0003,120]
[347254271,1735640466660,-10000.0,0.0003,30]
[347254272,1735640466684,-416.46593028,0.00030137,60]
[347254273,1735640466708,-2212.96,0.0003015,30]
[347254274,1735640466733,-610.903,0.0003019,120]
[347254275,1735640466758,-700.0,0.0003041,120]
[347254276,1735640466782,-160.0,0.0003042,120]
[347254277,1735640466807,-405.33234,0.000306,120]
[347254278,1735640466837,-200.0,0.000306,120]
[347254279,1735640466873,-700.0,0.00030958,120]
[347254280,1735640466907,-500.0,0.00031,120]
[347254281,1735640466939,-151.0,0.00031151,120]
[347254282,1735640466972,-64503.46944674,0.000312,30]
[347254283,1735640467005,-151.0,0.00031315,120]
[347254284,1735640467037,-610.942,0.0003139,120]
[347254285,1735640467069,-700.0,0.00031506,120]
[347254286,1735640467101,-4900.43,0.000316,30]
[347254287,1735640467131,-15303.01,0.000316,30]
[347254288,1735640467162,-405.33234,0.000318,120]
[347254289,1735640467195,-200.0,0.000318,120]
[347254290,1735640467235,-1789.033457,0.00031963,120]
[347254291,1735640467271,-10000.0,0.00032,30]
[347254292,1735640467303,-5000.0,0.00032,30]
[347254293,1735640467360,-500.0,0.00032,120]
[347254294,1735640467396,-700.0,0.00032054,120]
[347254295,1735640467436,-151.0,0.00032301,120]
[347254296,1735640467469,-548.285,0.000325,120]
[347254297,1735640467503,-548.285,0.000325,120]
[347254298,1735640467539,-548.286,0.000325,120]
[347254299,1735640467576,-548.285,0.000325,120]
[347254300,1735640467608,-548.285,0.000325,120]
[347254301,1735640467641,-610.882,0.0003259,120]
[347254302,1735640467673,-700.0,0.00032602,120]
[347254303,1735640467703,-151.0,0.0003263,120]
[347254304,1735640467734,-519.37177692,0.00032876,30]
[347254305,1735640467763,-501.32262547,0.00032876,30]
[347254306,1735640467793,-400.0,0.00032877,60]
[347254307,1735640467823,-30195.0,0.000329,30]
[347254308,1735640467852,-263.4704,0.000329,120]
[347254309,1735640467882,-382410.09795659,0.00032974,60]
[347254310,1735640473535,-900000.0,0.00032974,60]
[347254311,1735640476991,-900000.0,0.00032974,60]
[347254312,1735640481796,-291957.1474696,0.00032974,60]
[347254313,1735640481823,-100000.0,0.00033,30]
[347254314,1735640481850,-500.0,0.00033,120]
[347254315,1735640481875,-405.33234,0.00033,120]
[347254316,1735640481900,-215.99702,0.00033,120]
[347254317,1735640481926,-219.6026157,0.0003315,120]
[347254318,1735640481952,-151.0,0.00033452,120]
[347254319,1735640481980,-610.894,0.0003379,120]
[347254320,1735640482005,-151.0,0.00033945,120]
[347254321,1735640482031,-9529.63500908,0.00034,30]
[347254322,1735640482057,-1000.0,0.00034,120]
[347254323,1735640482086,-393.769216,0.00034,30]
[347254324,1735640482112,-405.33234,0.000342,120]
[347254325,1735640482138,-76673.04893188,0.000342,86]
[347254326,1735640482164,-76673.04893186,0.000342,86]
[347254327,1735640482190,-76673.04893186,0.000342,86]
[347254328,1735640482217,-76673.04893186,0.000342,86]
[347254329,1735640482244,-76673.04893186,0.000342,86]
[347254330,1735640482270,-151.0,0.00034603,120]
[347254331,1735640482296,-416483.39920066,0.0003484,120]
[347254332,1735640482323,-610.943,0.0003499,120]
[347254333,1735640482349,-150.0,0.00035,69]
[347254334,1735640482376,-200.0,0.00035,120]
[347254335,1735640482407,-200.0,0.00035,120]
[347254336,1735640482432,-396.69627,0.00035,120]
[347254337,1735640482460,-1079.62702087,0.00035,120]
[347254338,1735640482489,-500.0,0.00035,120]
[347254339,1735640482515,-779.16108869,0.00035,120]
[347254340,1735640482541,-8443.94414272,0.00035,120]
[347254341,1735640482567,-2383.08605058,0.00035,120]
[347254342,1735640482593,-200.0,0.00035,120]
[347254343,1735640482620,-200.0,0.00035,120]
[347254344,1735640482647,-851.16865617,0.00035,120]
[347254345,1735640482672,-282.83118,0.000352,120]
[347254346,1735640482698,-151.0,0.0003526,120]
[347254347,1735640482731,-405.33234,0.000354,120]
[347254348,1735640482757,-400.0,0.00035616,60]
[347254349,1735640482788,-151.0,0.00035753,120]
[347254350,1735640482818,-357.88362281,0.00036,120]
[347254351,1735640482844,-1000.0,0.00036,120]
[347254352,1735640482870,-523.974704,0.00036,120]
[347254353,1735640482894,-250.0,0.00036,30]
[347254354,1735640482921,-610.897,0.0003619,120]
[347254355,1735640482947,-1789.033457,0.0003653,120]
[347254356,1735640482980,-151.0,0.00036575,120]
[347254357,1735640483007,-405.33242,0.000366,120]
[347254358,1735640483032,-263.47041,0.000368,120]
[347254359,1735640483057,-151.0,0.00036904,120]
[347254360,1735640483082,-3799.77553764,0.00037,30]
[347254361,1735640483107,-6386.0,0.00037,60]
[347254362,1735640483131,-4515.65,0.00037,30]
[347254363,1735640483156,-300.0,0.00037,120]
[347254364,1735640483182,-610.942,0.0003739,120]
[347254365,1735640483207,-300.0,0.000374,120]
[347254366,1735640483233,-150.0,0.000375,112]
[347254367,1735640483257,-151.0,0.0003789,120]
[347254368,1735640483282,-1500.0,0.00038,60]
[347254369,1735640483306,-202.73889821,0.00038,30]
[347254370,1735640483331,-1000.0,0.00038,120]
[347254371,1735640483354,-250.0,0.00038,30]
[347254372,1735640483474,-1652407.15833095,0.00038042,120]
[347254373,1735640495514,-688138.46337785,0.00038042,120]
[347254374,1735640495540,-151.0,0.00038055,120]
[347254375,1735640495567,-401.08228619,0.00038356,60]
[347254376,1735640543654,4743.94934367,0.00025,120]
[347255053,1735640646595,500.0,0.00021295,120]
[347255054,1735640670752,160.0,0.00023339,120]
[347255055,1735640731591,160.0,0.00023623,120]
[347255058,1735640754116,-175.85795444,0.00013558,2]
[347255059,1735640759091,-177.23873196,0.00013422,2]
[347255060,1735640759112,-1.38077752,0.00013558,2]
[347255061,1735640759134,-225.162357,0.00013973,2]
[347255062,1735640759154,-185.6284939,0.00017267,2]
[347255063,1735640759174,-504.1962798,0.00017943,2]
[347255064,1735640759198,-786.70977364,0.00018176,2]
[347255071,1735640911904,252.07651219,0.00021295,90]
[347255075,1735640915771,318.549999,0.00021295,120]
[347255076,1735640918999,1499.03748996,0.00021295,120]
[347255078,1735640940320,-200.01786669,0.00013525,2]
[347255079,1735640940348,-361.23109798,0.00013662,2]
[347255080,1735640940374,-727.19428092,0.000138,2]
[347255081,1735640952091,-124.47480646,0.000138,2]
[347255082,1735640952111,-59.59479287,0.00014114,2]
[347255083,1735640954091,-209.9625533,0.00014114,2]
[347255084,1735640954112,-509.17638038,0.000149,2]
[347255092,1735641032578,-213.904239,0.00013973,2]
[347255093,1735641032589,-22.46856292,0.000149,2]
[347255094,1735641032599,-24900.0,0.00017974,2]
[347255095,1735641032608,-2.91527406,0.00018176,2]
[347255096,1735641032618,-764.975697,0.00018177,2]
[347255097,1735641032723,-612.045,0.0001848,2]
[347255098,1735641032733,-1519.28040984,0.00018948,2]
[347255099,1735641032743,-352.5613876,0.00019,2]
[347255100,1735641032752,-377.3874711,0.00019077,2]
[347255101,1735641032761,-377.38747109,0.00019078,2]
[347255102,1735641032770,-555.87786428,0.00019078,2]
[347255103,1735641032779,-377.38747109,0.00019078,2]
[347255104,1735641032790,-352.5613876,0.000191,2]
[347255105,1735641032802,-209571.24776442,0.00019138,2]
[347255106,1735641032818,-719.48018945,0.00019138,2]
[347255107,1735641032829,-10575.54529715,0.00019138,2]
[347255278,1735641040344,-163.04571342,0.00019073,2]
[347255279,1735641040355,-104.92337629,0.00019138,2]
[347255280,1735641040367,-2176.19749263,0.00019138,2]
[347255281,1735641040377,-500.77276988,0.00019173,2]
[347255282,1735641040387,-500.0,0.00019173,2]
[347255283,1735641040396,-500.0,0.00019173,2]
[347255284,1735641040407,-500.0,0.00019173,2]
[347255285,1735641040416,-6890.87794649,0.00019176,7]
[347255287,1735641040425,-150.0,0.00019177,2]
[347255288,1735641040435,-173.029,0.00019177,2]
[347255289,1735641040446,-247.3915,0.00019177,2]
[347255290,1735641040455,-206.69898562,0.00019177,2]
[347255291,1735641040465,-203.54910565,0.00019177,2]
[347255292,1735641040474,-185.50789991,0.00019177,2]
[347255293,1735641040484,-325.07240237,0.00019177,2]
[347255294,1735641040494,-500.0,0.00019177,2]
[347255295,1735641040503,-500.0,0.00019177,2]
[347255296,1735641040513,-376.95416356,0.00019177,2]
[347255297,1735641040527,-500.0,0.00019177,2]
[347255298,1735641040538,-500.0,0.00019177,2]
[347255299,1735641040548,-500.0,0.00019177,2]
[347255300,1735641040559,-500.0,0.00019177,2]
[347255301,1735641040568,-500.0,0.00019177,2]
[347255302,1735641040578,-500.0,0.00019177,2]
[347255303,1735641040587,-500.0,0.00019177,2]
[347255304,1735641040596,-485.24240012,0.00019177,2]
[347255305,1735641040605,-500.0,0.00019177,2]
[347255306,1735641040615,-500.0,0.00019177,2]
[347255307,1735641040625,-500.0,0.00019177,2]
[347255308,1735641040634,-500.0,0.00019177,2]
[347255309,1735641040644,-500.0,0.00019177,2]
[347255310,1735641040656,-500.0,0.00019177,2]
[347255311,1735641040666,-500.0,0.00019177,2]
[347255312,1735641040676,-500.0,0.00019177,2]
[347255313,1735641040685,-500.0,0.00019177,2]
[347255314,1735641040694,-236.53171455,0.00019177,2]
[347255315,1735641040703,-468.7625031,0.00019177,2]
[347255316,1735641040713,-593.09469105,0.00019177,2]
[347255317,1735641040723,-387.22613759,0.00019177,2]
[347255318,1735641040732,-270.0,0.00019177,2]
[347255319,1735641040741,-165.7226738,0.00019178,2]
[347255320,1735641040751,-47.38626368,0.00019178,2]
[347255321,1735641040799,-452.61373632,0.00019178,2]
[347255322,1735641040808,-500.17744206,0.00019178,2]
[347255323,1735641040818,-373.38702149,0.00019178,2]
[347255324,1735641040828,-503.92428369,0.00019178,2]
[347255325,1735641040838,-500.0,0.00019178,2]
[347255326,1735641040847,-500.0,0.00019178,2]
[347255327,1735641040857,-500.0,0.00019178,2]
[347255328,1735641040867,-498.40640724,0.00019178,2]
[347255329,1735641040876,-500.0,0.00019178,2]
[347255330,1735641040885,-500.0,0.00019178,2]
[347255331,1735641040895,-500.0,0.00019178,2]
[347255332,1735641040906,-500.0,0.00019178,2]
[347255333,1735641040916,-510.04406223,0.00019178,2]
[347255334,1735641040925,-500.0,0.00019178,2]
[347255335,1735641040935,-500.0,0.00019178,2]
[347255336,1735641040944,-500.0,0.00019178,2]
[347255337,1735641040953,-500.0,0.00019178,2]
[347255338,1735641040963,-500.0,0.00019178,2]
[347255339,1735641040973,-500.0,0.00019178,2]
[347255340,1735641040983,-267.2158581,0.00019178,2]
[347255341,1735641040995,-232.7841419,0.00019178,2]
[347255342,1735641041005,-361.03802067,0.00019178,2]
[347255343,1735641041014,-500.0,0.00019178,2]
[347255344,1735641041024,-500.0,0.00019178,2]
[347255345,1735641041033,-413.01774399,0.00019178,2]
[347255346,1735641041045,-86.98225601,0.00019178,2]
[347255347,1735641041054,-279.08479829,0.00019178,2]
[347255348,1735641041085,-220.91520171,0.00019178,2]
[347255349,1735641041095,-500.0,0.00019178,2]
[347255350,1735641041104,-500.0,0.00019178,2]
[347255351,1735641041114,-500.0,0.00019178,2]
[347255352,1735641041123,-500.0,0.00019178,2]
[347255353,1735641041133,-509.84765963,0.00019178,2]
[347255354,1735641041143,-500.0,0.00019178,2]
[347255355,1735641041155,-500.0,0.00019178,2]
[347255356,1735641041166,-500.0,0.00019178,2]
[347255357,1735641041176,-500.0,0.00019178,2]
[347255358,1735641041186,-500.0,0.00019178,2]
[347255359,1735641041196,-183.4563247,0.00019178,2]
[347255360,1735641041310,-44.77990621,0.00019178,2]
[347255361,1735641041320,-492.76185566,0.00019178,2]
[347255362,1735641041330,-500.0,0.00019178,2]
[347255363,1735641041340,-499.3553919,0.00019178,2]
[347255364,1735641041435,-9.88884677,0.00019178,2]
[347255365,1735641041453,-490.11115323,0.00019178,2]
[347255366,1735641041463,-500.0,0.00019178,2]
[347255367,1735641041473,-500.0,0.00019178,2]
[347255368,1735641041483,-500.0,0.00019178,2]
[347255369,1735641041493,-500.0,0.00019178,2]
[347255370,1735641041503,-500.0,0.00019178,2]
[347255371,1735641041512,-500.0,0.00019178,2]
[347255372,1735641041522,-500.0,0.00019178,2]
[347255373,1735641041532,-500.0,0.00019178,2]
[347255374,1735641041541,-500.0,0.00019178,2]
[347255375,1735641041551,-500.0,0.00019178,2]
[347255376,1735641041560,-500.0,0.00019178,2]
[347255377,1735641041569,-606.66878907,0.00019178,2]
[347255378,1735641041579,-2077.373535,0.00019178,2]
[347255379,1735641041589,-2077.373535,0.00019178,2]
[347255380,1735641041598,-500.0,0.00019178,2]
[347255381,1735641041607,-500.58548758,0.00019178,2]
[347255382,1735641041617,-505.02851221,0.00019178,2]
[347255383,1735641041627,-500.72671451,0.00019178,2]
[347255384,1735641041636,-500.0,0.00019178,2]
[347255385,1735641041646,-500.0,0.00019178,2]
[347255386,1735641041657,-500.0,0.00019178,2]
[347255387,1735641041667,-500.0,0.00019178,2]
[347255388,1735641041677,-500.0,0.00019178,2]
[347255389,1735641041686,-500.0,0.00019178,2]
[347255390,1735641041696,-500.0,0.00019178,2]
[347255391,1735641041706,-500.88044669,0.00019178,2]
[347255392,1735641041715,-500.0,0.00019178,2]
[347255393,1735641041725,-500.0,0.00019178,2]
[347255394,1735641041734,-500.0,0.00019178,2]
[347255395,1735641041743,-594.43822785,0.00019178,2]
[347255396,1735641041752,-500.0,0.00019178,2]
[347255397,1735641041762,-506.57882795,0.00019178,2]
[347255398,1735641041773,-500.0,0.00019178,2]
[347255399,1735641041783,-500.0,0.00019178,2]
[347255400,1735641041793,-504.15733938,0.00019178,2]
[347255401,1735641041803,-505.47608984,0.00019178,2]
[347255402,1735641041813,-500.0,0.00019178,2]
[347255403,1735641041822,-500.0,0.00019178,2]
[347255404,1735641041832,-500.0,0.00019178,2]
[347255405,1735641041843,-500.0,0.00019178,2]
[347255406,1735641041852,-500.0,0.00019178,2]
[347255407,1735641041862,-500.0,0.00019178,2]
[347255408,1735641041872,-500.0,0.00019178,2]
[347255409,1735641041882,-500.0,0.00019178,2]
[347255410,1735641041892,-500.0,0.00019178,2]
[347255411,1735641041902,-500.73248747,0.00019178,2]
[347255412,1735641041912,-1861.03,0.00019178,2]
[347255413,1735641041921,-500.0,0.00019178,2]
[347255414,1735641041930,-500.0,0.00019178,2]
[347255415,1735641041939,-500.0,0.00019178,2]
[347255416,1735641041949,-500.0,0.00019178,2]
[347255417,1735641041958,-500.0,0.00019178,2]
[347255418,1735641041967,-500.0,0.00019178,2]
[347255419,1735641041977,-500.87683732,0.00019178,2]
[347255420,1735641041986,-500.0,0.00019178,2]
[347255421,1735641041995,-224.2893032,0.00019178,2]
[347255422,1735641042004,-500.0,0.00019178,2]
[347255423,1735641042014,-500.0,0.00019178,2]
[347255424,1735641042023,-500.0,0.00019178,2]
[347255425,1735641042032,-506.78078016,0.00019178,2]
[347255426,1735641042041,-500.0,0.00019178,2]
[347255427,1735641042050,-500.0,0.00019178,2]
[347255428,1735641042058,-506.82534137,0.00019178,2]
[347255429,1735641042067,-500.0,0.00019178,2]
[347255430,1735641042077,-482.96668666,0.00019178,2]
[347255431,1735641042086,-500.0,0.00019178,2]
[347255432,1735641042095,-500.0,0.00019178,2]
[347255433,1735641042104,-500.0,0.00019178,2]
[347255434,1735641042114,-500.0,0.00019178,2]
[347255435,1735641042122,-500.0,0.00019178,2]
[347255436,1735641042132,-500.0,0.00019178,2]
[347255437,1735641042141,-151.0,0.00019178,2]
[347255438,1735641042151,-500.0,0.00019178,2]
[347255439,1735641042160,-500.0,0.00019178,2]
[347255440,1735641042169,-500.0,0.00019178,2]
[347255441,1735641042179,-500.0,0.00019178,2]
[347255442,1735641042189,-500.0,0.00019178,2]
[347255443,1735641042198,-621.95393674,0.00019178,2]
[347255444,1735641042207,-500.0,0.00019178,2]
[347255445,1735641042216,-500.0,0.00019178,2]
[347255446,1735641042225,-500.0,0.00019178,2]
[347255447,1735641042234,-500.0,0.00019178,2]
[347255448,1735641042244,-389.50825182,0.00019178,2]
[347255449,1735641042253,-500.0,0.00019178,2]
[347255450,1735641042263,-546.25966313,0.00019178,2]
[347255451,1735641042272,-500.0,0.00019178,2]
[347255452,1735641042281,-500.0,0.00019178,2]
[347255453,1735641042290,-500.0,0.00019178,2]
[347255454,1735641042300,-500.0,0.00019178,2]
[347255455,1735641042309,-500.0,0.00019178,2]
[347255456,1735641042319,-500.0,0.00019178,2]
[347255457,1735641042328,-500.0,0.00019178,2]
[347255458,1735641042337,-500.0,0.00019178,2]
[347255459,1735641042347,-500.0,0.00019178,2]
[347255460,1735641042356,-500.0,0.00019178,2]
[347255461,1735641042365,-500.0,0.00019178,2]
[347255462,1735641042374,-500.0,0.00019178,2]
[347255463,1735641042383,-500.0,0.00019178,2]
[347255464,1735641042393,-500.0,0.00019178,2]
[347255465,1735641042402,-504.69334862,0.00019178,2]
[347255466,1735641042411,-500.0,0.00019178,2]
[347255467,1735641042421,-500.0,0.00019178,2]
[347255468,1735641042430,-151.0,0.00019178,2]
[347255469,1735641042440,-151.0,0.00019178,2]
[347255470,1735641042449,-151.0,0.00019178,2]
[347255471,1735641042459,-500.0,0.00019178,2]
[347255472,1735641042469,-503.92296452,0.00019178,2]
[347255473,1735641042478,-500.0,0.00019178,2]
[347255474,1735641042488,-500.0,0.00019178,2]
[347255475,1735641042497,-500.0,0.00019178,2]
[347255476,1735641042507,-500.0,0.00019178,2]
[347255477,1735641042516,-500.0,0.00019178,2]
[347255478,1735641042526,-500.0,0.00019178,2]
[347255479,1735641042535,-500.0,0.00019178,2]
[347255480,1735641042545,-500.0,0.00019178,2]
[347255481,1735641042555,-500.0,0.00019178,2]
[347255482,1735641042564,-500.0,0.00019178,2]
[347255483,1735641042574,-500.0,0.00019178,2]
[347255484,1735641042584,-500.0,0.00019178,2]
[347255485,1735641042593,-500.0,0.00019178,2]